bitfinex/quotes_BTCUSD_20250714
["timestamp","ask_amount","ask_price","bid_price","bid_amount"]
[1752505953411,0.59041803,120590.0,120580.0,0.01549781]
[1752505953647,0.06771112,120590.0,120580.0,0.02077781]
[1752505953877,0.002,120590.0,120580.0,1.28214415]
[1752505954105,0.002,120590.0,120580.0,1.17505268]
[1752505954355,0.002,120590.0,120580.0,1.38917002]
[1752505954592,0.002,120590.0,120580.0,0.93434311]
[1752505954836,0.001,120590.0,120580.0,0.53590311]
[1752505955102,0.06671112,120590.0,120580.0,0.57281515]
[1752505955328,0.0765594,120590.0,120580.0,0.35869781]
[1752505955547,0.56418645,120590.0,120580.0,0.14829781]
[1752505955834,0.56992232,120590.0,120580.0,0.01549781]
[1752505956019,0.12861112,120590.0,120580.0,0.14929781]
[1752505956235,0.14675154,120590.0,120580.0,0.03195894]
[1752505956460,0.15504382,120590.0,120580.0,0.01649781]
[1752505956676,0.14675154,120590.0,120580.0,0.14929781]
[1752505956904,0.14675154,120590.0,120580.0,0.01649781]
[1752505957123,0.14675148,120590.0,120580.0,0.20127159]
[1752505957336,0.07400306,120590.0,120580.0,0.06847159]
[1752505957551,0.08229514,120590.0,120580.0,0.20127159]
[1752505957760,0.07400306,120590.0,120580.0,0.20127159]
[1752505957965,0.06671112,120590.0,120580.0,0.20127159]
[1752505958414,0.06671112,120590.0,120580.0,0.20335159]
[1752505958868,0.06869112,120590.0,120580.0,0.20335159]
[1752505959080,0.06869112,120590.0,120580.0,0.07055159]
[1752505959081,0.07698306,120590.0,120580.0,0.07055159]
[1752505959296,0.06869112,120590.0,120580.0,0.20335159]
[1752505959506,0.06869112,120590.0,120580.0,0.20336703]
[1752505959976,0.06869112,120590.0,120580.0,0.05405378]
[1752505960440,0.06771112,120590.0,120580.0,0.07276703]
[1752505960668,0.06771112,120590.0,120580.0,0.2055664]
[1752505960893,0.0842952,120590.0,120580.0,0.15359262]
[1752505961134,0.72353791,120590.0,120580.0,0.01551262]
[1752505961359,0.77944638,120590.0,120580.0,0.14831262]
[1752505961856,0.85406128,120590.0,120580.0,0.01551262]
[1752505962086,0.68821005,120590.0,120580.0,0.01551262]
[1752505962327,0.69494164,120590.0,120580.0,0.01551262]
[1752505962549,0.06969112,120590.0,120580.0,0.01551262]
[1752505962794,0.07798313,120590.0,120580.0,0.01551262]
[1752505963316,0.07798313,120590.0,120580.0,0.16874788]
[1752505963317,0.06969112,120590.0,120580.0,0.16874788]
[1752505963545,0.06771112,120590.0,120580.0,0.16874788]
[1752505964234,0.0779832,120590.0,120580.0,0.16874788]
[1752505964459,0.0862752,120590.0,120580.0,0.03274788]
[1752505964696,0.09456748,120590.0,120580.0,0.14831262]
[1752505965172,0.1028599,120590.0,120580.0,0.14831262]
[1752505965398,0.1028599,120590.0,120580.0,0.01551262]
[1752505965645,0.55768681,120590.0,120580.0,0.14831262]
[1752505965871,0.54939439,120590.0,120580.0,0.08066788]
[1752505966095,0.09456748,120590.0,120580.0,0.21346788]
[1752505966339,0.7152461,120590.0,120580.0,0.01551262]
[1752505966574,1.19326107,120590.0,120580.0,0.01551262]
[1752505966837,1.32408107,120590.0,120580.0,0.01551262]
[1752505967068,1.19128107,120590.0,120580.0,0.01551262]
[1752505967296,1.40539841,120590.0,120580.0,0.01395262]
[1752505967547,1.40539841,120590.0,120570.0,4e-05]
[1752505967548,0.51415809,120580.0,120570.0,4e-05]
[1752505967771,1.11383211,120580.0,120570.0,4e-05]
[1752505968024,1.24659211,120580.0,120570.0,4e-05]
[1752505968474,1.11383211,120580.0,120570.0,4e-05]
[1752505968709,0.03989208,120590.0,120570.0,4e-05]
[1752505968939,0.00929194,120590.0,120570.0,0.00313]
[1752505969171,0.001,120590.0,120570.0,0.00313]
[1752505969405,0.003,120590.0,120580.0,0.00309]
[1752505969866,0.001,120590.0,120580.0,0.47585]
[1752505970092,0.002,120590.0,120580.0,0.48850734]
[1752505970544,4.64675148,120600.0,120580.0,0.62130734]
[1752505970766,4.64675148,120600.0,120590.0,0.00309]
[1752505971474,4.64675148,120600.0,120590.0,0.13589]
[1752505971702,4.64675148,120600.0,120590.0,0.06522073]
[1752505971929,4.64675148,120600.0,120590.0,0.68554098]
[1752505971930,4.63881019,120600.0,120590.0,0.68554098]
[1752505972157,4.63881019,120600.0,120590.0,0.55066784]
[1752505972384,4.63881019,120600.0,120590.0,0.69800869]
[1752505973106,4.63681019,120600.0,120590.0,0.69800869]
[1752505973345,4.63681019,120600.0,120590.0,0.73105992]
[1752505973572,4.63681019,120600.0,120590.0,0.57350125]
[1752505973795,4.63681019,120600.0,120590.0,2.53978124]
[1752505974035,4.63681019,120600.0,120590.0,2.53978137]
[1752505974262,4.63681019,120600.0,120590.0,2.22600654]
[1752505974491,4.63681019,120600.0,120590.0,2.54807345]
[1752505974723,4.63681019,120600.0,120590.0,3.8685213]
[1752505974950,4.63681019,120600.0,120590.0,3.97970838]
[1752505975187,4.63681019,120600.0,120590.0,3.84994838]
[1752505975425,4.63681019,120600.0,120590.0,3.84694838]
[1752505975679,4.63681019,120600.0,120590.0,4.67828038]
[1752505975904,4.63681019,120600.0,120590.0,4.34771338]
[1752505976131,4.63681019,120600.0,120590.0,4.34671338]
[1752505976355,4.63681019,120600.0,120590.0,4.34871338]
[1752505976578,4.63681019,120600.0,120590.0,4.78405838]
[1752505976810,4.63681019,120600.0,120590.0,1.14229269]
[1752505977073,4.63681019,120600.0,120590.0,1.32472869]
[1752505977304,4.63681019,120600.0,120590.0,1.42162369]
[1752505977541,0.07946814,120630.0,120600.0,2.36866216]
[1752505977782,0.07997982,120630.0,120620.0,0.34]
[1752505978292,0.0662228,120630.0,120620.0,0.34309]
[1752505978766,0.07991774,120630.0,120620.0,0.00309]
[1752505978978,0.08291774,120630.0,120620.0,0.47581]
[1752505979231,0.08291774,120630.0,120620.0,0.47272]
[1752505979469,0.55532344,120630.0,120620.0,0.387272]
[1752505979683,0.55532344,120630.0,120620.0,0.01546973]
[1752505979684,0.78592001,120630.0,120620.0,0.01546973]
[1752505979895,0.86626712,120630.0,120620.0,0.01546973]
[1752505980528,0.86826712,120630.0,120620.0,0.01546973]
[1752505980757,0.86526712,120630.0,120620.0,0.01546973]
[1752505980951,0.41444021,120630.0,120620.0,0.01546973]
[1752505981220,0.86926712,120630.0,120620.0,0.01546973]
[1752505982372,0.86726712,120630.0,120620.0,0.01546973]
[1752505982819,0.74804519,120630.0,120620.0,0.01546973]
[1752505983052,0.88076567,120630.0,120620.0,0.01546973]
[1752505983318,0.80375621,120630.0,120620.0,0.01546973]
[1752505983531,0.93347621,120630.0,120620.0,0.01546973]
[1752505984493,0.92947621,120630.0,120620.0,0.01546973]
[1752505984722,0.92718661,120630.0,120620.0,0.01547316]
[1752505984957,0.01658037,120620.0,120600.0,0.34]
[1752505985223,0.55275425,120620.0,120600.0,0.40305417]
[1752505985444,0.03316307,120610.0,120600.0,0.06614445]
[1752505985673,0.58754691,120620.0,120600.0,0.01856345]
[1752505985924,0.59579685,120620.0,120600.0,0.01856345]
[1752505986141,0.61237701,120620.0,120600.0,0.01856345]
[1752505986368,0.61637701,120620.0,120600.0,0.01856345]
[1752505986639,0.001,120610.0,120600.0,0.0836878]
[1752505986859,0.00929063,120610.0,120600.0,0.01856345]
[1752505987088,0.0175814,120610.0,120600.0,0.01856345]
[1752505987313,0.46411754,120610.0,120600.0,0.01856345]
[1752505988184,0.45482691,120610.0,120600.0,0.01856345]
[1752505988422,0.61237757,120620.0,120600.0,0.01856345]
[1752505988652,0.13368,120620.0,120610.0,0.00309]
[1752505988886,0.001,120620.0,120610.0,0.15124345]
[1752505989109,0.001,120620.0,120610.0,0.49124345]
[1752505989334,0.001,120620.0,120610.0,0.55501494]
[1752505989559,0.01420662,120630.0,120610.0,0.42233494]
[1752505989792,0.02249581,120630.0,120610.0,0.53645149]
[1752505990019,0.02249581,120630.0,120620.0,0.00309]
[1752505990688,0.10478572,120630.0,120610.0,0.53954149]
[1752505990908,0.55961263,120630.0,120610.0,0.53954149]
[1752505991131,0.55961263,120630.0,120610.0,0.55501603]
[1752505991132,0.56790223,120630.0,120610.0,0.55501603]
[1752505991385,0.55961263,120630.0,120610.0,0.53954149]
[1752505991610,0.57619183,120630.0,120610.0,0.53954149]
[1752505991836,0.56790216,120630.0,120610.0,0.53954149]
[1752505992065,0.56161263,120630.0,120610.0,0.53954149]
[1752505992408,0.54603384,120630.0,120610.0,0.40686149]
[1752505992634,0.01720662,120630.0,120620.0,0.00309]
[1752505992863,0.01720662,120630.0,120620.0,0.13577]
[1752505993086,0.01720662,120630.0,120620.0,0.18972415]
[1752505993781,0.02449581,120630.0,120620.0,0.18972415]
[1752505994011,0.56161304,120630.0,120620.0,0.13268]
[1752505994234,0.73769962,120630.0,120610.0,0.53950149]
[1752505994464,0.56361352,120630.0,120610.0,0.53950149]
[1752505994690,0.72740985,120630.0,120610.0,0.53950149]
[1752505994914,0.55332337,120630.0,120610.0,0.53950149]
[1752505995356,0.5533233,120630.0,120620.0,0.00315]
[1752505995606,0.55632324,120630.0,120620.0,0.00315]
[1752505995824,0.53474465,120630.0,120620.0,0.00315]
[1752505996052,0.53574465,120630.0,120620.0,0.13579]
[1752505996282,0.01720662,120630.0,120620.0,0.05710615]
[1752505996508,0.01420662,120630.0,120620.0,0.59511877]
[1752505996736,0.01420662,120630.0,120620.0,0.46040615]
[1752505996960,0.01620662,120630.0,120620.0,0.59304615]
[1752505997887,0.01920662,120630.0,120620.0,0.59304615]
[1752506000648,0.01920662,120630.0,120620.0,0.56094615]
[1752506000871,0.01920662,120630.0,120620.0,0.39922615]
[1752506001113,0.01920662,120630.0,120620.0,0.53186615]
[1752506001300,0.53974465,120630.0,120620.0,0.39926615]
[1752506001523,0.55632317,120630.0,120620.0,0.53186615]
[1752506002406,0.55632317,120630.0,120620.0,0.39926615]
[1752506002623,0.55632317,120630.0,120620.0,0.53186615]
[1752506002624,0.53974465,120630.0,120620.0,0.53186615]
[1752506002834,0.54803391,120630.0,120620.0,0.53186615]
[1752506003047,0.54803391,120630.0,120620.0,0.39926615]
[1752506003264,0.093207,120630.0,120620.0,0.53186615]
[1752506003714,0.54176465,120630.0,120620.0,0.52686615]
[1752506004150,0.08491774,120630.0,120620.0,0.52686615]
[1752506005711,0.08491774,120630.0,120620.0,0.53001615]
[1752506006494,0.08491774,120630.0,120620.0,0.52997615]
[1752506006931,0.09320707,120630.0,120620.0,0.52997615]
[1752506007177,0.53974465,120630.0,120620.0,0.52997615]
[1752506007401,0.54176465,120630.0,120620.0,0.52997615]
[1752506007665,0.55005398,120630.0,120620.0,0.52997615]
[1752506007893,0.72413974,120630.0,120620.0,0.39426615]
[1752506008117,0.74071915,120630.0,120620.0,0.34004]
[1752506008384,0.74071915,120630.0,120620.0,0.4726]
[1752506008598,0.55834351,120630.0,120620.0,0.4726]
[1752506008826,0.72413974,120630.0,120620.0,0.1326]
[1752506009049,0.74071929,120630.0,120620.0,4e-05]
[1752506009269,0.73242996,120630.0,120620.0,0.1326]
[1752506009966,0.1035166,120630.0,120620.0,0.1326]
[1752506010192,0.55834344,120630.0,120620.0,0.14723336]
[1752506010905,0.01920662,120630.0,120620.0,0.14723336]
[1752506011118,0.01920662,120630.0,120620.0,0.15038336]
[1752506013835,0.01920662,120630.0,120620.0,0.18068336]
[1752506014317,0.00926727,120630.0,120620.0,0.18068336]
[1752506014567,0.00926727,120630.0,120620.0,0.53616784]
[1752506015292,0.00926727,120630.0,120620.0,0.40360784]
[1752506015559,0.07497839,120630.0,120620.0,0.50582784]
[1752506017123,0.00926727,120630.0,120620.0,0.50582784]
[1752506017375,0.00926727,120630.0,120620.0,0.43810784]
[1752506017600,0.00926727,120630.0,120620.0,0.57058784]
[1752506018938,0.00926727,120630.0,120620.0,0.5058042]
[1752506019075,0.00926727,120630.0,120620.0,0.5382042]
[1752506019474,0.00926727,120630.0,120620.0,0.5701048]
[1752506019683,0.00926727,120630.0,120620.0,0.8658048]
[1752506019914,0.00926727,120630.0,120620.0,0.96169276]
[1752506020783,0.00926727,120630.0,120620.0,0.76491276]
[1752506021226,0.46311541,120640.0,120620.0,0.89739276]
[1752506021451,0.45498025,120640.0,120630.0,0.12567174]
[1752506021692,0.71454043,120640.0,120630.0,0.01550144]
[1752506021926,1.05659972,120640.0,120630.0,0.01550431]
[1752506022147,1.21394072,120640.0,120630.0,0.01550431]
[1752506022360,1.68280072,120640.0,120630.0,0.01550431]
[1752506022572,1.68580072,120640.0,120630.0,0.01550431]
[1752506022787,1.55036072,120640.0,120630.0,0.01550431]
[1752506023047,1.68080072,120640.0,120630.0,0.01550431]
[1752506023254,0.80836072,120640.0,120630.0,0.01550431]
[1752506023469,0.21762488,120640.0,120630.0,0.01550431]
[1752506023678,0.39569628,120640.0,120630.0,0.01550431]
[1752506024105,0.47998339,120640.0,120630.0,0.01550431]
[1752506024783,0.61242339,120640.0,120630.0,0.01550431]
[1752506026520,0.67632339,120640.0,120630.0,0.01550431]
[1752506026955,0.54388339,120640.0,120630.0,0.01550431]
[1752506027170,0.68886582,120640.0,120630.0,0.01550431]
[1752506027602,0.53871779,120640.0,120630.0,0.01550577]
[1752506027817,0.28206006,120640.0,120630.0,0.01550577]
[1752506028034,0.11627716,120640.0,120630.0,0.01550577]
[1752506028255,0.11627675,120640.0,120630.0,0.03060835]
[1752506028479,0.12456553,120640.0,120630.0,0.03060835]
[1752506028698,0.01654243,120640.0,120630.0,0.01762577]
[1752506028958,0.01654243,120640.0,120630.0,0.18370577]
[1752506029163,0.01654243,120640.0,120630.0,0.21630577]
[1752506030476,0.01654243,120640.0,120630.0,0.21630225]
[1752506030735,0.01654243,120640.0,120630.0,0.26750648]
[1752506031391,0.01654243,120640.0,120630.0,0.13506648]
[1752506031835,0.01654243,120640.0,120630.0,0.26750648]
[1752506032057,0.01654243,120640.0,120630.0,0.13506648]
[1752506032279,0.01254243,120640.0,120630.0,0.26750648]
[1752506032492,0.01254243,120640.0,120630.0,0.39990648]
[1752506032700,0.001,120640.0,120630.0,0.55891359]
[1752506032923,0.01329792,120640.0,120630.0,0.69135359]
[1752506033152,0.001,120640.0,120630.0,0.70589444]
[1752506033383,0.0246393,120650.0,120630.0,0.70589444]
[1752506033603,0.01697439,120660.0,120640.0,0.0633]
[1752506033833,0.01260415,120650.0,120640.0,0.14884769]
[1752506034079,0.05011162,120660.0,120650.0,0.00516]
[1752506034326,0.05839916,120660.0,120650.0,0.02066225]
[1752506034593,0.05839909,120660.0,120650.0,0.02066225]
[1752506035100,0.06668725,120660.0,120650.0,0.15306225]
[1752506035353,0.07099369,120660.0,120650.0,0.21127302]
[1752506035584,0.06270615,120660.0,120650.0,0.07887302]
[1752506035808,0.05441868,120660.0,120650.0,0.21127302]
[1752506036042,0.05541868,120660.0,120650.0,0.21127302]
[1752506036255,0.05441868,120660.0,120650.0,0.21126507]
[1752506036468,0.04813135,120660.0,120650.0,0.21126507]
[1752506036691,0.03984409,120660.0,120650.0,0.21126507]
[1752506038907,0.03984409,120660.0,120650.0,0.14276507]
[1752506039153,0.03984409,120660.0,120650.0,0.2169543]
[1752506039380,0.01499419,120660.0,120650.0,1.09312832]
[1752506039611,0.01499419,120660.0,120650.0,0.96072832]
[1752506039843,0.01499419,120660.0,120650.0,0.63826141]
[1752506040070,0.01499419,120660.0,120650.0,0.94850226]
[1752506040303,0.01499419,120660.0,120650.0,0.8974596]
[1752506040304,0.01299419,120660.0,120650.0,0.8974596]
[1752506040556,0.01299419,120660.0,120650.0,1.0298196]
[1752506040799,0.0004,120660.0,120650.0,3.00914565]
[1752506041030,0.0004,120660.0,120650.0,2.87678565]
[1752506041256,0.0004,120660.0,120650.0,4.3037796]
[1752506041483,0.0004,120660.0,120650.0,4.30272571]
[1752506041697,0.0004,120660.0,120650.0,3.01793756]
[1752506041906,0.0004,120660.0,120650.0,3.02621168]
[1752506042123,0.0004,120660.0,120650.0,3.66090372]
[1752506042356,0.0004,120660.0,120650.0,3.67119174]
[1752506042781,0.0004,120660.0,120650.0,3.64103952]
[1752506042993,0.0004,120660.0,120650.0,3.5252557]
[1752506043205,0.0004,120660.0,120650.0,3.80019963]
[1752506043416,0.01235884,120680.0,120660.0,0.01454085]
[1752506043701,0.00015329,120680.0,120670.0,1.12079887]
[1752506043913,0.00015329,120680.0,120670.0,0.63723736]
[1752506044131,0.01250217,120680.0,120670.0,0.63723736]
[1752506044375,0.00015329,120680.0,120670.0,0.63723736]
[1752506044581,0.00015329,120680.0,120670.0,0.63723292]
[1752506044793,0.00015329,120680.0,120670.0,0.70727836]
[1752506045611,3.3932305,120700.0,120670.0,0.70827836]
[1752506045842,0.07399633,120690.0,120680.0,0.00304]
[1752506046083,0.72120308,120690.0,120680.0,0.01546581]
[1752506046339,0.88778789,120690.0,120680.0,0.01546581]
[1752506046796,1.02010789,120690.0,120680.0,0.01546581]
[1752506046990,0.88778789,120690.0,120680.0,0.01546581]
[1752506047243,1.02110789,120690.0,120680.0,0.01546581]
[1752506047698,0.88878789,120690.0,120680.0,0.01546581]
[1752506048616,1.02010789,120690.0,120680.0,0.01546581]
[1752506048839,1.02210789,120690.0,120680.0,0.01546581]
[1752506049310,0.36630986,120690.0,120680.0,0.01546581]
[1752506049561,0.36811986,120690.0,120680.0,0.01546581]
[1752506049783,0.82407677,120690.0,120680.0,0.01546581]
[1752506052647,0.19061742,120660.0,120650.0,0.00304]
[1752506052876,0.6306796,120660.0,120650.0,0.01562312]
[1752506053334,0.6318096,120660.0,120650.0,0.01562636]
[1752506053562,0.6931096,120660.0,120650.0,0.01562636]
[1752506054055,0.6931096,120660.0,120650.0,0.01662636]
[1752506054287,0.6931096,120660.0,120650.0,0.01562636]
[1752506054525,0.6306796,120660.0,120650.0,0.046759]
[1752506054967,0.6306796,120660.0,120650.0,0.048759]
[1752506055407,0.17585269,120660.0,120650.0,0.01562636]
[1752506055665,0.6316796,120660.0,120650.0,0.01562636]
[1752506056124,0.71415671,120660.0,120650.0,0.01562636]
[1752506056349,0.77745671,120660.0,120650.0,0.01562636]
[1752506056590,0.77945671,120660.0,120650.0,0.01562636]
[1752506057338,1.65059716,120660.0,120650.0,0.01562636]
[1752506057578,1.71513801,120660.0,120650.0,0.01562636]
[1752506058527,1.71513801,120660.0,120650.0,0.01562884]
[1752506059209,1.71513801,120660.0,120650.0,0.00734413]
[1752506059903,0.18237536,120630.0,120620.0,4e-05]
[1752506060120,0.97662992,120630.0,120620.0,0.00019334]
[1752506060843,0.52180301,120630.0,120620.0,0.00019334]
[1752506061061,1.04095992,120630.0,120620.0,0.00019334]
[1752506062190,1.04295992,120630.0,120620.0,0.00019334]
[1752506064512,1.04495992,120630.0,120620.0,0.00019334]
[1752506066350,0.84834992,120630.0,120620.0,0.00019334]
[1752506066831,0.71606992,120630.0,120620.0,0.00019334]
[1752506067050,0.84834992,120630.0,120620.0,0.00019334]
[1752506067291,0.84634992,120630.0,120620.0,0.00019334]
[1752506067712,0.84634992,120630.0,120620.0,0.00119334]
[1752506068451,0.09163678,120630.0,120620.0,0.00635334]
[1752506068674,0.71406992,120630.0,120620.0,0.00635334]
[1752506068891,0.71406992,120630.0,120620.0,0.00119334]
[1752506070523,0.71406992,120630.0,120620.0,0.00635334]
[1752506070746,0.73064919,120630.0,120620.0,0.00635334]
[1752506071001,0.72235973,120630.0,120620.0,0.00635334]
[1752506071418,0.72235973,120630.0,120620.0,0.00119334]
[1752506072087,0.72348973,120630.0,120620.0,0.00119334]
[1752506072312,0.85463973,120630.0,120620.0,0.00119334]
[1752506072754,0.72235973,120630.0,120620.0,0.00119334]
[1752506073265,0.85463973,120630.0,120620.0,0.00119334]
[1752506073493,0.68703315,120630.0,120620.0,0.00635334]
[1752506073724,0.23849522,120630.0,120620.0,0.00635334]
[1752506073947,0.2229163,120630.0,120620.0,0.07135334]
[1752506074178,0.001,120630.0,120620.0,0.07848867]
[1752506074402,0.46311493,120650.0,120620.0,0.04558867]
[1752506074611,0.69331808,120650.0,120630.0,0.03388]
[1752506074842,0.86737624,120650.0,120630.0,0.08094538]
[1752506075071,0.86737571,120650.0,120630.0,0.08094538]
[1752506075298,0.64547579,120640.0,120630.0,0.06548]
[1752506075528,0.64547579,120640.0,120630.0,0.00516]
[1752506075790,0.49627106,120640.0,120630.0,0.02062945]
[1752506076002,0.66205355,120640.0,120630.0,0.02672526]
[1752506076210,0.4714048,120640.0,120630.0,0.02672526]
[1752506076631,0.63718729,120640.0,120630.0,0.02672526]
[1752506076846,0.63899729,120640.0,120630.0,0.02672526]
[1752506077504,0.63999729,120640.0,120630.0,0.01546945]
[1752506077724,0.63999729,120640.0,120630.0,0.02062945]
[1752506078813,0.71305556,120640.0,120630.0,0.01546945]
[1752506079027,0.17408597,120630.0,120620.0,0.00337334]
[1752506079244,0.63720248,120630.0,120620.0,0.02083919]
[1752506079461,0.4714059,120630.0,120620.0,0.02083919]
[1752506079690,0.64549187,120630.0,120620.0,0.05565311]
[1752506079906,0.64549194,120630.0,120620.0,0.05565311]
[1752506080113,0.64549194,120630.0,120620.0,0.05565272]
[1752506080331,0.47969557,120630.0,120620.0,0.05565272]
[1752506080546,0.6454918,120630.0,120620.0,0.05665272]
[1752506080769,0.63901241,120630.0,120620.0,0.05665272]
[1752506081244,0.47321618,120630.0,120620.0,0.04116726]
[1752506081474,0.64730222,120630.0,120620.0,0.04116726]
[1752506081702,0.63901262,120630.0,120620.0,0.04116726]
[1752506081917,0.77125262,120630.0,120620.0,0.00635334]
[1752506082155,0.85259973,120630.0,120620.0,0.00119334]
[1752506084536,0.72035973,120630.0,120620.0,0.00119334]
[1752506084767,0.53798402,120630.0,120620.0,0.00119334]
[1752506085183,0.67022402,120630.0,120620.0,0.00119334]
[1752506086509,0.67851321,120630.0,120620.0,0.00119334]
[1752506086726,0.67022402,120630.0,120620.0,0.00119334]
[1752506087826,0.67851328,120630.0,120620.0,0.00119334]
[1752506088787,0.69505207,120630.0,120620.0,0.00119334]
[1752506089007,0.53798402,120630.0,120620.0,0.00119334]
[1752506089228,0.67018402,120630.0,120620.0,0.00119334]
[1752506089670,0.08315711,120630.0,120620.0,0.00619334]
[1752506089925,0.58702691,120640.0,120620.0,0.03669334]
[1752506090210,0.63029724,120660.0,120630.0,0.0628]
[1752506090422,0.53617402,120650.0,120640.0,0.03534]
[1752506090644,0.53617402,120650.0,120640.0,0.0373]
[1752506090873,0.00184,120660.0,120640.0,0.0695]
[1752506091094,0.08318711,120660.0,120650.0,0.03534]
[1752506091306,0.08318711,120660.0,120650.0,0.10723]
[1752506091976,0.08318711,120660.0,120650.0,0.0695]
[1752506092865,0.53801402,120660.0,120650.0,0.0695]
[1752506093078,0.54001402,120660.0,120650.0,0.0695]
[1752506093303,0.55011122,120660.0,120640.0,0.06554]
[1752506093537,0.45482691,120650.0,120640.0,0.1352]
[1752506093748,0.45663691,120650.0,120640.0,0.13716]
[1752506093968,0.45482691,120650.0,120640.0,0.186406]
[1752506094193,0.45482691,120650.0,120640.0,0.217006]
[1752506094861,0.53801402,120660.0,120640.0,0.219006]
[1752506095110,0.45482691,120650.0,120640.0,0.23449808]
[1752506095739,0.45482691,120650.0,120640.0,0.23349808]
[1752506096265,0.45482691,120650.0,120640.0,0.23249808]
[1752506096453,0.45482691,120650.0,120640.0,0.23449808]
[1752506096703,0.45482691,120650.0,120640.0,0.23249808]
[1752506096924,0.45482691,120650.0,120640.0,0.23549808]
[1752506097582,0.45482691,120650.0,120640.0,0.23449953]
[1752506097787,0.45482691,120650.0,120640.0,0.23549953]
[1752506098220,0.45482691,120650.0,120640.0,0.23549896]
[1752506098437,0.45482691,120650.0,120640.0,0.10333896]
[1752506098649,0.45482691,120650.0,120640.0,0.1556537]
[1752506099067,0.45663691,120650.0,120640.0,0.0184937]
[1752506099286,0.53798402,120650.0,120640.0,0.1506137]
[1752506099501,0.53798402,120650.0,120640.0,0.1556137]
[1752506099719,0.53617402,120650.0,120640.0,0.04227497]
[1752506099931,0.58878691,120660.0,120640.0,0.2182136]
[1752506100140,0.67013402,120660.0,120650.0,0.00304]
[1752506100386,0.00184,120660.0,120650.0,0.2152136]
[1752506100846,0.00184,120660.0,120650.0,0.22975445]
[1752506101075,0.00184,120660.0,120650.0,0.29851259]
[1752506101320,0.00184,120660.0,120650.0,0.22975445]
[1752506101794,0.00184,120660.0,120650.0,0.09763445]
[1752506102026,0.00184,120660.0,120650.0,0.22975445]
[1752506103388,0.00184,120660.0,120650.0,0.23075445]
[1752506104554,0.00184,120660.0,120650.0,0.23074975]
[1752506104783,0.00184,120660.0,120650.0,0.25382473]
[1752506105235,0.00184,120660.0,120650.0,0.12170473]
[1752506105447,0.00184,120660.0,120650.0,0.23071093]
[1752506105686,0.00184,120660.0,120650.0,0.21617008]
[1752506105902,0.00184,120660.0,120650.0,0.57071093]
[1752506107409,0.00184,120660.0,120650.0,0.43863093]
[1752506107633,0.45666691,120660.0,120650.0,0.02149008]
[1752506107884,0.79096658,120660.0,120650.0,0.01649008]
[1752506108118,0.63447349,120660.0,120650.0,0.01649008]
[1752506108336,0.80135912,120660.0,120650.0,0.01649008]
[1752506108555,0.91686439,120660.0,120650.0,0.01649008]
[1752506108798,0.90857678,120660.0,120650.0,0.01649008]
[1752506109500,0.93343278,120660.0,120650.0,0.01549008]
[1752506110413,1.14235278,120660.0,120650.0,0.01549008]
[1752506110863,1.27439278,120660.0,120650.0,0.01549008]
[1752506111275,1.27439278,120660.0,120650.0,0.01548854]
[1752506112001,1.59717969,120660.0,120650.0,0.01548854]
[1752506112227,1.72921969,120660.0,120650.0,0.01548854]
[1752506112449,1.77921969,120660.0,120650.0,0.01548854]
[1752506112667,1.86053703,120660.0,120650.0,0.01548854]
[1752506113122,2.25953703,120660.0,120650.0,0.01548854]
[1752506113586,1.74203788,120660.0,120650.0,0.00720788]
[1752506113821,1.92507788,120660.0,120650.0,0.00720788]
[1752506114059,1.92507788,120660.0,120620.0,0.00019334]
[1752506114060,0.19895422,120630.0,120620.0,0.00019334]
[1752506114325,0.91629966,120630.0,120620.0,0.00019334]
[1752506114570,0.91742966,120630.0,120620.0,0.00019334]
[1752506114815,1.3503166,120630.0,120620.0,0.00019334]
[1752506115027,1.4003166,120630.0,120620.0,0.00019334]
[1752506116192,1.41485745,120630.0,120620.0,0.00019334]
[1752506116870,1.41885745,120630.0,120620.0,0.00019334]
[1752506118238,1.41985745,120630.0,120620.0,0.00019334]
[1752506118462,1.46985745,120630.0,120620.0,0.00019334]
[1752506118689,1.92468436,120630.0,120620.0,0.00019334]
[1752506118950,1.54535942,120610.0,120600.0,4e-05]
[1752506119162,2.03849472,120610.0,120600.0,4e-05]
[1752506119378,2.43849472,120610.0,120600.0,4e-05]
[1752506119629,2.43962472,120610.0,120600.0,4e-05]
[1752506120282,2.46440683,120610.0,120600.0,4e-05]
[1752506120786,2.46940683,120610.0,120600.0,4e-05]
[1752506120998,2.06940683,120610.0,120600.0,4e-05]
[1752506121881,2.07040683,120610.0,120600.0,4e-05]
[1752506122093,2.02040683,120610.0,120600.0,4e-05]
[1752506122324,2.07040683,120610.0,120600.0,4e-05]
[1752506122762,2.02040683,120610.0,120600.0,4e-05]
[1752506122976,2.07040683,120610.0,120600.0,4e-05]
[1752506123623,0.18245099,120580.0,120570.0,4e-05]
[1752506123839,0.97461077,120580.0,120570.0,4e-05]
[1752506124070,1.82007473,120580.0,120570.0,4e-05]
[1752506124286,1.87595173,120580.0,120570.0,4e-05]
[1752506124517,2.33077864,120580.0,120570.0,4e-05]
[1752506124730,1.93077864,120580.0,120570.0,4e-05]
[1752506124975,1.55239213,120580.0,120570.0,4e-05]
[1752506125405,2.03146551,120580.0,120570.0,4e-05]
[1752506125846,1.55239213,120580.0,120570.0,4e-05]
[1752506126061,1.63931213,120580.0,120570.0,0.01548621]
[1752506126276,1.5766386,120580.0,120570.0,0.01548621]
[1752506127212,1.5796386,120580.0,120570.0,0.01548621]
[1752506127648,1.12481169,120580.0,120570.0,0.01548621]
[1752506127864,0.96739522,120580.0,120570.0,0.01548621]
[1752506128081,1.42435213,120580.0,120570.0,0.01548621]
[1752506128740,1.87817904,120580.0,120570.0,0.01548621]
[1752506128942,1.3155186,120580.0,120570.0,0.01548621]
[1752506129166,1.4485986,120580.0,120570.0,0.01548621]
[1752506130130,1.29227213,120580.0,120570.0,0.01548621]
[1752506130366,1.42435213,120580.0,120570.0,0.01548621]
[1752506130591,1.34803859,120580.0,120570.0,0.01548621]
[1752506131072,1.21595859,120580.0,120570.0,0.01548621]
[1752506131283,1.34803859,120580.0,120570.0,0.01548621]
[1752506131526,1.8018655,120580.0,120570.0,0.01548621]
[1752506131748,1.09215021,120550.0,120540.0,4e-05]
[1752506131975,1.43946732,120550.0,120540.0,4e-05]
[1752506132422,0.5298135,120550.0,120540.0,4e-05]
[1752506132668,1.43946732,120550.0,120540.0,4e-05]
[1752506132894,1.51578086,120550.0,120540.0,4e-05]
[1752506133590,1.91578086,120550.0,120540.0,4e-05]
[1752506134006,1.91578086,120550.0,120540.0,0.00104]
[1752506134227,1.94002733,120550.0,120540.0,0.00104]
[1752506134899,0.81142076,120520.0,120470.0,0.01454085]
[1752506135111,1.16522497,120520.0,120510.0,0.00199]
[1752506135316,1.33117253,120520.0,120510.0,0.00199]
[1752506135535,1.16522497,120520.0,120510.0,0.00199]
[1752506135761,1.35932304,120520.0,120510.0,0.00199]
[1752506135968,1.35731304,120520.0,120510.0,0.00199]
[1752506136205,1.39162117,120520.0,120510.0,0.00199]